Cogmind - Beta 15 @@@ ROGUE MODE // 2025.08.09 @ 18:11:20 Player: Zoe Result: Destroyed by S-10 Pest with Light Assault Rifle Performance ------------- Evolutions (0) 0 Regions Visited (4) 800 Robots Destroyed (24) 120 Value Destroyed (514) 514 Prototype IDs (25) 500 Alien Tech Used (0) 0 Bonus (302) 302 TOTAL SCORE: 2236 Bonus ------- Follower Combat Kills 14 Aligned with FarCom 300 Friendly Fire -12 Cogmind --------- Core Integrity 0/250 Matter 281/300 Energy 250/250 System Corruption 4% Temperature Cool (0) Movement Treading (160) Location -9/Mines Parts ------- > --- POWER (1) -------- Ion Engine > --- PROPULSION (2) --- Light Treads Light Treads > --- UTILITY (2) ------ Medium Storage Unit > --- WEAPON (2) ------- Light Assault Rifle > --- INVENTORY (10) --- Light Ion Engine Light Treads Flight Unit Lightpack 2.0 Improved Terrain Scanner Seismic Detector Rocket Launcher Mining Laser Peak State ------------ > --- POWER ------------ Light Nuclear Core > --- PROPULSION ------- Aluminum Leg Aluminum Leg > --- UTILITY ---------- Medium Storage Unit ECM Suite > --- WEAPON ----------- Light Assault Rifle Mining Laser > --- INVENTORY -------- Ion Engine Ion Engine Light Treads Lightpack 2.0 Improved Terrain Scanner Seismic Detector Assault Rifle Rocket Launcher [Rating: 13] Favorites ----------- Power Ion Engine Engine Ion Engine Power Core Light Nuclear Core Propulsion Aluminum Leg Treads Light Treads Leg Aluminum Leg Utility Medium Storage Unit Device ECM Suite Storage Medium Storage Unit Protection Light Armor Plating Weapon Light Assault Rifle Energy Gun EM Pulse Gun Ballistic Gun Light Assault Rifle Special Weapon Mining Laser Build | -11 -10 -10 -10 -9 ------- Run | Yrd Mat Min Exi Min Slots Evolved . | . . . . . Power . | . . . . . Propulsion . | . . . . . Utility . | . . . . . Weapon . | . . . . . Parts Attached 24 | 8 3 8 . 5 Power 5 | 1 . 3 . 1 Engine 4 | 1 . 2 . 1 Core 1 | . . 1 . . Reactor . | . . . . . Propulsion 6 | 2 1 1 . 2 Treads 2 | . . . . 2 Leg 4 | 2 1 1 . . Wheel . | . . . . . Hover . | . . . . . Flight . | . . . . . Utility 6 | 3 1 2 . . Device 3 | 2 . 1 . . Storage 2 | 1 1 . . . Processor . | . . . . . Hackware . | . . . . . Protection 1 | . . 1 . . Artifact . | . . . . . Weapon 7 | 2 1 2 . 2 Energy Gun 1 | 1 . . . . Energy Cannon . | . . . . . Ballistic Gun 4 | 1 . 1 . 2 Ballistic Cannon . | . . . . . Launcher . | . . . . . Special Weapon 2 | . 1 1 . . Impact Weapon . | . . . . . Slashing Weapon . | . . . . . Piercing Weapon . | . . . . . Special Melee Weapon . | . . . . . Unidentified Prototypes . | . . . . . Parts Lost 11 | . 2 3 . 6 Power 2 | . . 1 . 1 Propulsion 4 | . 1 1 . 2 Utility 2 | . . 1 . 1 Weapon 3 | . 1 . . 2 Highest Loss Streak 3 | . 2 2 . 3 To Critical Strikes . | . . . . . Average Backups 6 | 3 7 6 6 7 Power 1 | 1 1 1 2 1 Propulsion 1 | 1 1 1 1 1 Utility 2 | . 2 2 2 3 Weapon 1 | 1 2 1 1 1 Tool/Special . | . . . . . Unused Backups 7 | . 1 1 . 5 Power 1 | . . . . 1 Propulsion 3 | . 1 . . 2 Utility 1 | . . . . 1 Weapon 2 | . . 1 . 1 Tool/Special . | . . . . . Average Slot Usage (%) 94 | . 99 97 100 87 Engine 7 | . 14 12 . 1 Core 6 | . . 1 14 12 Treads 3 | . . . . 9 Leg 21 | . 27 27 28 9 Device 8 | . 14 1 14 12 Storage 14 | . 14 14 14 14 Protection 3 | . . 10 . . Energy Gun 4 | . 14 4 . . Ballistic Gun 19 | . 13 22 14 21 Special Weapon 3 | . . . 14 4 Peak Build Rating 13 | 9 9 9 12 13 Average Rating 8 | 6 8 7 10 11 On Entrance 7 | . 9 9 9 12 Naked Turns . | . . . . . Heaviest Build 21 | 14 19 21 19 19 Greatest Support 40 | 20 20 20 20 40 Greatest Overweight (x) 6 | 2 1 2 . 6 Average Overweight (x) . | . . . . . Largest Inventory Capacity 10 | 8 10 10 10 10 Average Capacity 9 | 7 9 10 10 10 Most Carried 10 | 6 9 8 9 10 Average Carried 7 | 4 7 6 7 9 Final Capacity 10 | 8 10 10 10 10 Final Carried 10 | 6 7 6 9 10 Class Distribution -------------------- 100% | Mutant Dominant Class ---------------- Mutant | -10/Materials Mutant | -10/Mines Mutant | -10/Exiles Mutant | -9/Mines Resources | -11 -10 -10 -10 -9 ----------- Run | Yrd Mat Min Exi Min Matter Collected 607 | 307 46 153 . 101 Remotely . | . . . . . Salvage Created 851 | 257 181 259 . 154 Parts 50 | 22 12 8 . 8 Haulers Intercepted 1 | . 1 . . . Recyclers Shooed . | . . . . . Parts Field Recycled . | . . . . . Retrieved Matter . | . . . . . Parts Self-Destructed . | . . . . . Prevented . | . . . . . Kills | -11 -10 -10 -10 -9 ------- Run | Yrd Mat Min Exi Min Combat Hostiles Destroyed 14 | . 3 6 . 5 Guns 14 | . 3 6 . 5 Classes Destroyed 7 | 2 3 1 . 1 Tunneler 7 | 7 . . . . Hauler 1 | . 1 . . . Recycler 1 | 1 . . . . Watcher 1 | . 1 . . . Swarmer 4 | . . 1 . 3 Grunt 9 | . 3 5 . 1 Brawler 1 | . . . . 1 Best Kill Streak 3 | 3 3 2 . 3 Combat Bots Only 3 | . 2 2 . 3 Max Kills in Single Turn 1 | 1 1 1 . 1 Gunslinging . | . . . . . Exploded . | . . . . . Melee . | . . . . . Uniques/NPCs Destroyed . | . . . . . Combat | -11 -10 -10 -10 -9 -------- Run | Yrd Mat Min Exi Min Hostile Shots Fired 157 | . 9 61 . 87 Missed 43 | . 4 13 . 26 Hits 114 | . 5 48 . 61 Melee 5 | . . . . 5 Projectile 109 | . 5 48 . 56 Critical Strikes 1 | . . . . 1 Damage Taken 1404 | . 184 563 . 657 Core 250 | . . 69 . 181 Absorbed by Shields . | . . . . . Core Remaining (%) 100 | 100 . . . . Volleys Fired 117 | 27 24 32 . 34 Largest 2 | 2 2 2 . 2 Hottest 120 | 60 60 100 . 120 Shots Fired 213 | 54 40 63 . 56 Gun 203 | 54 32 62 . 55 Cannon . | . . . . . Launcher . | . . . . . Special 10 | . 8 1 . 1 Kinetic 148 | 27 16 50 . 55 Thermal 10 | . 8 1 . 1 Explosive . | . . . . . Electromagnetic 55 | 27 16 12 . . Robot Hit Streak 15 | 6 5 15 . 11 Robot Miss Streak 6 | 4 6 2 . 2 Penetration Max . | . . . . . Secondary Targets 1 | . . 1 . . Max Gunslinging Chain 1 | . . 1 . . Shots Hit Robots 133 | 27 13 47 . 46 Core Hits 49 | 15 8 15 . 11 Critical Kills 1 | 1 . . . . Critical Parts Destroyed . | . . . . . Critical Strikes 1 | 1 . . . . Destroy 1 | 1 . . . . Melee Attacks . | . . . . . Impact . | . . . . . Slashing . | . . . . . Piercing . | . . . . . Sneak Attacks . | . . . . . Combat Hostiles . | . . . . . Follow-up Attacks . | . . . . . Damage Inflicted 1513 | 327 199 586 . 401 Guns 1401 | 327 151 522 . 401 Cannons . | . . . . . Explosions 112 | . 48 64 . . Melee . | . . . . . Ramming . | . . . . . Kinetic 968 | 133 35 399 . 401 Thermal 112 | . 48 64 . . Explosive . | . . . . . Electromagnetic 433 | 194 116 123 . . Impact . | . . . . . Slashing . | . . . . . Piercing . | . . . . . Highest Corruption 4 | . . . . 4 Average Corruption 4 | . . . . 4 Corruption Purged . | . . . . . Corruption Blocked . | . . . . . Effects 2 | . . . . 2 Message Errors 1 | . . . . 1 Matter Fused 1 | . . . . 1 Overload Shots . | . . . . . Overflow Damage 98 | . 98 . . . Projectiles . | . . . . . Explosions 98 | . 98 . . . Melee . | . . . . . Knockbacks . | . . . . . Impact . | . . . . . Kinetic . | . . . . . Secondary . | . . . . . Self-Inflicted Damage 147 | . 110 37 . . Shots 2 | . 1 1 . . Rammed . | . . . . . Targets Rammed . | . . . . . Kicked . | . . . . . Crushed . | . . . . . Highest Temperature 259 | 40 76 259 . 48 Average Temperature 42 | 17 28 101 . 8 Received Heat Transfer 456 | . 42 240 . 174 Effects 1 | . . 1 . . Energy Bleed 1 | . . 1 . . Siege Activations . | . . . . . Martial Activations . | . . . . . Shielding Activations . | . . . . . Robots Disrupted . | . . . . . Combat Hostiles . | . . . . . Robots Corrupted . | . . . . . Combat Hostiles . | . . . . . Parts Fried 3 | 2 . 1 . . Impact Corruptions . | . . . . . Robots Melted . | . . . . . Combat Hostiles . | . . . . . Parts Melted . | . . . . . Heat Transferred 150 | . 50 100 . . Parts Sabotaged . | . . . . . Parts Stolen . | . . . . . Parts Stripped . | . . . . . Power Chain Reactions 1 | . . 1 . . Alert | -11 -10 -10 -10 -9 ------- Run | Yrd Mat Min Exi Min Maximum Alert Level . | . . . . . Low Security (%) 100 | 100 100 100 . 100 Level 1 . | . . . . . Level 2 . | . . . . . Level 3 . | . . . . . Level 4 . | . . . . . Level 5 . | . . . . . High Security . | . . . . . Max Security . | . . . . . Peak Influence 88 | 10 88 57 . 60 Initial 22 | . . 22 . . Average 11 | 1 25 12 . 6 Influence Increases 544 | 40 185 198 . 121 Destroy 0b10 Robot/C 320 | . 60 160 . 100 Destroy 0b10 Robot/NC 50 | 40 10 . . . Destroy Leader 74 | . 24 30 . 20 Allied During Kill 2 | . . 2 . . Successful Hack 10 | . 10 . . . Disable Machine 30 | . 30 . . . Destroy Structure 28 | . 21 6 . 1 Lose Combat Pursuer 30 | . 30 . . . Influence Decreases 536 | 40 127 239 17 113 Entered New Map 53 | . . 36 17 . Time Decay 393 | 40 107 153 . 93 Lost Part 70 | . 20 30 . 20 Lost Ally 20 | . . 20 . . Squads Dispatched 2 | . 2 . . . Investigation 2 | . 2 . . . Extermination . | . . . . . Reinforcement . | . . . . . Assault . | . . . . . Garrison . | . . . . . Intercept . | . . . . . Searches Triggered . | . . . . . Construction Impeded . | . . . . . Haulers Reinforced . | . . . . . Active Scanning Responses . | . . . . . Cargo Convoy Interrupts . | . . . . . Stealth | -11 -10 -10 -10 -9 --------- Run | Yrd Mat Min Exi Min Distress Signals 1 | . 1 . . . Communications Jammed . | . . . . . Distress Signals . | . . . . . Times Spotted 26 | . 11 6 . 9 Peak Tracking Total 4 | . 4 2 . 3 Tactical Retreats 2 | . 1 . . 1 Traps | -11 -10 -10 -10 -9 ------- Run | Yrd Mat Min Exi Min Traps Triggered 1 | . 1 . . . Indirectly . | . . . . . Trap Hack Attempts . | . . . . . Triggered . | . . . . . Disarmed . | . . . . . Reprogrammed . | . . . . . Reused . | . . . . . Traps Extracted . | . . . . . Installed . | . . . . . Triggered . | . . . . . Machines | -11 -10 -10 -10 -9 ---------- Run | Yrd Mat Min Exi Min Machines Disabled 2 | . 2 . . . Max in Single Turn 2 | . 2 . . . Machines Repaired . | . . . . . Machines Dismantled . | . . . . . Machines Sabotaged . | . . . . . Overloaded Fab Kills . | . . . . . Hacking | -11 -10 -10 -10 -9 --------- Run | Yrd Mat Min Exi Min Machines Accessed 3 | . 2 . 1 . Terminals 2 | . 2 . . . Fabricators . | . . . . . Repair Stations . | . . . . . Recycling Units . | . . . . . Scanalyzers . | . . . . . Garrison Access . | . . . . . Total Hacks 10 | . 9 . 1 . Successful 6 | . 5 . 1 . Failed 4 | . 4 . . . Catastrophic . | . . . . . Database Lockouts . | . . . . . Manual 8 | . 7 . 1 . Terminals 9 | . 9 . . . Fabricators . | . . . . . Repair Stations . | . . . . . Recycling Units . | . . . . . Scanalyzers . | . . . . . Garrison Access . | . . . . . Terminal Hacks 4 | . 3 . 1 . Robot Analysis 2 | . 2 . . . Prototype ID Bank 1 | . 1 . . . Proto ID Catalog 1 | . . . 1 . Fabricator Hacks . | . . . . . Repair Station Hacks . | . . . . . Recycling Unit Hacks . | . . . . . Scanalyzer . | . . . . . Garrison Access Hacks . | . . . . . Unauthorized Hacks 2 | . 2 . . . Terminals 2 | . 2 . . . Botnet 2 | . 2 . . . Fabricators . | . . . . . Repair Stations . | . . . . . Recycling Units . | . . . . . Scanalyzers . | . . . . . Garrison Access . | . . . . . Data Cores Recovered . | . . . . . Used . | . . . . . Hacking Detections 2 | . 2 . . . Full Trace Events 2 | . 2 . . . Feedback Events . | . . . . . Feedback Blocked . | . . . . . Robot Schematics Acquired . | . . . . . Robots Built . | . . . . . Authchips . | . . . . . Time . | . . . . . Total Robot Build Rating . | . . . . . Part Schematics Acquired . | . . . . . Parts Built . | . . . . . Authchips . | . . . . . Time . | . . . . . Total Part Build Rating . | . . . . . Parts Repaired . | . . . . . Time . | . . . . . Parts Recycled . | . . . . . Recycled Matter . | . . . . . Retrieved Matter . | . . . . . Retrieved Components . | . . . . . Parts Scanalyzed . | . . . . . Part Schematics Acquired . | . . . . . Parts Damaged . | . . . . . Bothacking | -11 -10 -10 -10 -9 ------------ Run | Yrd Mat Min Exi Min Used RIF Installer . | . . . . . Robots Hacked . | . . . . . Non-combat . | . . . . . Combat . | . . . . . Robot Hacks Applied . | . . . . . Relay Couplers Released . | . . . . . Fabnet Peak Effective % . | . . . . . Robots Rewired . | . . . . . Allies Hacked . | . . . . . Hacks Repelled . | . . . . . Allies | -11 -10 -10 -10 -9 -------- Run | Yrd Mat Min Exi Min Total Allies 3 | . . 3 . . Largest Group 3 | . . 3 . . Highest-Rated Group 40 | . . 40 . . Highest-Rated Ally 16 | . . 16 . . Total Orders . | . . . . . Ally Attacks 8 | . . 8 . . Total Damage 68 | . . 68 . . Kills 2 | . . 2 . . Allies Corrupted . | . . . . . Allies Melted . | . . . . . Intel | -11 -10 -10 -10 -9 ------- Run | Yrd Mat Min Exi Min Active Infowar (turns) 1512 | 169 358 85 281 619 Terrain 369 | 11 358 . . . Seismic 158 | 158 . . . . ECM 985 | . . 85 281 619 Robot Analysis Total 2 | . 2 . . . Derelict Logs Recovered 2 | . . 1 . 1 Drone Launches . | . . . . . Drone Recoveries . | . . . . . Exploration | -11 -10 -10 -10 -9 ------------- Run | Yrd Mat Min Exi Min Turns Passed 2457 | 269 358 833 281 716 Spaces Moved 1444 | 147 233 421 234 409 Core 22 | 18 . . . 4 Treads 225 | . . . . 225 Legs 1197 | 129 233 421 234 180 Wheels . | . . . . . Hover . | . . . . . Flight . | . . . . . Fastest Speed 50 | 50 120 120 120 120 Average Speed 140 | 115 122 166 120 144 Slowest Speed 350 | 150 190 260 120 350 Overloaded Moves . | . . . . . Propulsion Burnouts . | . . . . . Robots Hopped . | . . . . . Potential Cave-ins . | . . . . . Cave-ins Triggered . | . . . . . Exploration Rate (%) 50 | 5 36 89 61 63 Regions Visited 4 Branch Regions 3 Pre-discovered Areas 2 | . . . . 2 Known Exits Taken . | . . . . . Unknown Exits Taken 4 | 1 1 1 1 . Scrap Searched 2 | . . 1 . 1 Spaces Dug 1 | . . 1 . . Terrain Destroyed 27 | . 20 6 . 1 Melee . | . . . . . Projectile 2 | . . 1 . 1 AOE 25 | . 20 5 . . Terrain Rammed . | . . . . . Walls Destroyed . | . . . . . Machines Disabled . | . . . . . Actions | -11 -10 -10 -10 -9 --------- Run | Yrd Mat Min Exi Min Total 1680 | 196 267 494 234 489 Wait 62 | 3 . 25 . 34 Move 1440 | 146 232 420 233 409 Hop . | . . . . . Pick Up 27 | 12 5 5 1 4 Fast Attach 3 | 1 . . . 2 Attach 13 | 6 2 3 . 2 Detach . | . . . . . Swap 11 | 1 2 6 . 2 Drop 7 | . 2 3 . 2 Fire 117 | 27 24 32 . 34 Melee . | . . . . . Ram . | . . . . . Kick . | . . . . . Crush . | . . . . . Escape Stasis . | . . . . . Rewire . | . . . . . Trap . | . . . . . Miscellaneous . | . . . . . Route ------- -11/Scrapyard -10/Materials (discovered 2 exits: [*Min x2]) -10/Mines (discovered 3 exits: [*Mat x2] / *Exi) -10/Exiles -9/Mines History --------- Turn | Location | Event 8 | -11/Scrapyard | Discovered new exit (range 15) 270 | -11/Scrapyard | Entered Materials 316 | -10/Materials | Build established: Mutant 407 | -10/Materials | Discovered new exit (range 15) 619 | -10/Materials | Discovered new exit (range 7) 628 | -10/Materials | Entered Mines 700 | -10/Mines | Assisted by bots powering up and referring to "LRC-V3" 816 | -10/Mines | Learned Materials emergency access door positions 816 | -10/Mines | Discovered new exit (range 7) 1242 | -10/Mines | Lost 3 allies 1259 | -10/Mines | Discovered new exit (range 8) 1455 | -10/Mines | Deemed a non-threat by the Exiles lab entrance 1456 | -10/Mines | Discovered new exit (range 5) 1461 | -10/Mines | Entered Exiles 1491 | -10/Exiles | Met 8R-AWN 1513 | -10/Exiles | Met EX-HEX 1548 | -10/Exiles | Met EX-BIN 1562 | -10/Exiles | Aligned with FarCom system 1563 | -10/Exiles | Given EX-Vault access code 1598 | -10/Exiles | Opened EX-Vault 1605 | -10/Exiles | Found Lightpack 2.0 1629 | -10/Exiles | Warned to stay clear of 0b10 Research branches 1665 | -10/Exiles | Met EX-DEC 1731 | -10/Exiles | Discovered new exit (range 10) 1742 | -10/Exiles | Left Exiles lab with Lightpack 2.0 1742 | -10/Exiles | Entered Mines 1910 | -9/Mines | Received a Rocket Launcher from a helpful Derelict 2024 | -9/Mines | Lost 3 parts (2n1w) 2085 | -9/Mines | Learned location of Storage (-8) 2317 | -9/Mines | Core integrity fell below 50% 2391 | -9/Mines | Core integrity fell below 20% 2458 | -9/Mines | Destroyed by S-10 Pest with Light Assault Rifle Last Messages --------------- 02382_ K-01 Serf collects debris. 02384_ Acquired 2 matter. 02385_ K-01 Serf collects debris. 02387_ Acquired 2 matter. 02388_ K-01 Serf collects debris. 02389_ Acquired 2 matter. 02391_ K-01 Serf collects debris. 02392_ Acquired 2 matter. 02395_ K-01 Serf collects debris. 02397_ Acquired 2 matter. 02399_ K-01 Serf collects debris. 02400_ Acquired 2 matter. 02404_ Lgt. Assault Rifle destroyed. 02407_ Acquired 1 matter. 02409_ ZN%NV641<|2=TJA,XHK AXVRFJO# 02417_ Acquired Lgt. Treads. 02428_ System corrupted: Matter fused (-8). Map ----- +----------------------------------------------------+ | ?????????????????????????????????????????????????? | | ?????????????????????????????????????????????????? | | ?????????????????????????????????????????????????? | | ?????????????????????????????????????????????????? | | ?????????????????????????????????????????????????? | | ?????????????????????????????????????????????????? | | ??????????????????????????????????????? ??????? | | ??????????????????????????????????????# ??????? | | ?????????????????????????????????????## ?????# | | ?????????????????????????????????????# ??????# | | ????????????????????????????????????? ?????# | | ?????????????????????????????????????? ?????# | | ?????????????????????????????????????? ??????? | | ??????????????????????????????????????? #??????? | | ??????????????????????????????????????? #??????? | | ???????????????????????????????????????# #??????? | | ??????????????????????????????????????## #??????? | | ?????????????????????????????????????## ###????? | | ????????????????????????????????????## ##???? | | ????????????????????????????????##### ##??? | | ???????????????????????????????## #??? | | ???????????????????????######### #??? | | ???????????????????????# ### ##?? | | ???????????????????????# s #### ##? | | ?????????????????####??#ss######## #?# ## | | ????????????????## ##?# @#??????# #?# # | | ???????????????## %### ##?????## #?# | | ???????????????# % ##?????## #### ### | | ???????????????# #??????###### ##?## | | ???????????????## u ##????????## #???## | | ????????????????####### #????????# #????? | | ??????????????????????## #???????## ##????? | | ???????????????????????# #??###### ##?????? | | ???????????????????????## ##??# #??????? | | ????????????????????###########?# ##??????? | | ????????????????????# #?## ###???????? | | ????????????????????# """ """ #??#######?????????? | | ????????????????????# """ """ #??????????????????? | | ????????????????????# """ """ #??????????????????? | | ????????????????????# #??????????????????? | | ????????????????????# #################### | | ????????????????????# # | | ????????????????????# ################# # | | ????????????????????###########?????????????### # | | ??????????????????????????????############### # | | ??????????????????????????????# # | | ??????????????????????????????# ######## ## % | | ??????????????????????????????# #??????# ### [ | | ??????????????????????????????# #??????# #?# | | ?????????????????????????###### #?????? ?## | +----------------------------------------------------+ Best States ------------- Heat Dissipation 25 Energy Generation 14 Energy Capacity 250 Matter Stores 300 Matter Capacity 300 Sight Range 16 Terrain Scan Range 16 Terrain Scan Density 10 ECM Strength 1 Armor Coverage 150 Evasion (%) 55 Recoil Reduction 2 Item Schematics ----------------- None Robot Schematics ------------------ None Fabricated ------------ Nothing Repaired ---------- Nothing Alien Tech Used ----------------- None Achievements -------------- None Challenges ------------ None Game ------ Seed DroneInterceptMount Manual? 0 Play Time 00:16:43 Cumulative 40.0 hours Start 2025.08.09 @ 17:53:14 End 2025.08.09 @ 18:11:20 Sessions 1 Manual Loads 0 Difficulty Rogue Special Mode None Game No. 79 Rogue 76 Adventurer 3 Explorer 0 Win Type - Total 0 Types 0/0/0/0/0/0/0/0/0/0 Lore% 28 Gallery% 28 Achievement% 30 Wizard Run 0 Options --------- Layout 1 ASCII 0 Keyboard 0 Movement Mouse Keybinds 0 Fullscreen 1 Font 24/Smallcaps Map View 50x35 Zoom Use 0% Tactical HUD 1 Map Filters NONE Filters NONE Steam 1 RUN: e1e0c9a3-1e32-448b-92f0-a990482dfa6d